bitfinex-derivatives/quotes_SOLF0:USTF0_20250301
["timestamp","ask_amount","ask_price","bid_price","bid_amount"]
[1740863212681,7.16287408,140.73,140.7,203.69221303]
[1740863212982,0.05417408,140.73,140.7,114.62716009]
[1740863213579,7.16297408,140.73,140.7,114.62716009]
[1740863213788,7.16297408,140.73,140.7,107.51736009]
[1740863214884,0.05417408,140.73,140.7,114.62736009]
[1740863215084,0.05417408,140.73,140.7,107.51736009]
[1740863215591,0.05417408,140.73,140.71,7.1091]
[1740863217783,7.16267408,140.73,140.71,7.1091]
[1740863219483,7.16267408,140.73,140.7,0.05323479]
[1740863219691,7.16267408,140.73,140.7,7.16293479]
[1740863221792,7.16267408,140.73,140.7,0.05323479]
[1740863222087,0.05417408,140.73,140.71,7.1094]
[1740863222388,7.16267408,140.73,140.71,7.1094]
[1740863226998,0.05417408,140.73,140.71,7.1094]
[1740863227899,0.05417408,140.73,140.72,7.93078104]
[1740863229603,0.05417408,140.73,140.72,15.03978104]
[1740863230502,0.05417408,140.73,140.72,24.87554709]
[1740863232208,227.58,140.76,140.72,28.08654709]
[1740863232504,169.19802663,140.79,140.73,11.26349]
[1740863232703,169.19802663,140.79,140.74,5.11178499]
[1740863232906,228.28780953,140.83,140.72,177.64142958]
[1740863233110,1.9331,140.82,140.73,11.26168057]
[1740863233415,7.1052,140.8,140.76,0.04713266]
[1740863233793,0.74780953,140.83,140.77,10.32]
[1740863233995,1.89,140.9,140.78,1.8496]
[1740863234411,1.89,140.9,140.81,7.1039]
[1740863234709,1.89,140.9,140.83,0.05313214]
[1740863235504,1.14949968,140.89,140.83,0.05313214]
[1740863235703,7.1029,140.84,140.83,0.05313214]
[1740863236099,10.36,140.87,140.81,39.34780929]
[1740863236297,3.7104,140.86,140.81,39.34780929]
[1740863236495,3.7104,140.86,140.76,39.34780929]
[1740863237208,0.04772959,140.82,140.8,0.04917941]
[1740863237911,7.1048,140.81,140.8,0.04917941]
[1740863247625,7.1069,140.76,140.75,10.36]
[1740863247826,7.1069,140.76,140.74,43.30590929]
[1740863248022,10.3,140.82,140.74,39.34780929]
[1740863248219,2.0111,140.81,140.74,39.34780929]
[1740863248528,2.0111,140.81,140.74,9.83695232]
[1740863248726,0.05271854,140.79,140.76,0.04739837]
[1740863249533,7.1064,140.77,140.76,0.04739837]
[1740863253232,7.1064,140.77,140.76,9.837e-05]
[1740863254042,17.4064,140.77,140.76,9.837e-05]
[1740863255233,20.9664,140.77,140.76,9.837e-05]
[1740863261344,22.117083,140.77,140.76,9.837e-05]
[1740863263847,18.517083,140.77,140.76,9.837e-05]
[1740863264046,17.3664,140.77,140.76,9.837e-05]
[1740863264937,7.1064,140.77,140.76,9.837e-05]
[1740863278367,29.62676899,140.77,140.76,9.837e-05]
[1740863278670,33.18676899,140.77,140.76,9.837e-05]
[1740863279166,34.60752625,140.77,140.76,9.837e-05]
[1740863280758,55.96752625,140.77,140.76,9.837e-05]
[1740863282872,34.60752625,140.77,140.76,9.837e-05]
[1740863283477,7.113,140.64,140.63,9.83695232]
[1740863285477,7.1135,140.63,140.62,0.05284273]
[1740863296485,7.1156,140.59,140.57,7.1163]
[1740863297380,10.2,140.64,140.52,182.11021187]
[1740863297685,7.1166,140.57,140.54,7.1178]
[1740863298071,7.1166,140.57,140.54,7.16373998]
[1740863300587,0.05393457,140.59,140.54,3.60593998]
[1740863300790,190.96067567,140.63,140.58,7.116]
[1740863301586,7.1144,140.62,140.58,7.116]
[1740863301884,0.04837702,140.61,140.59,0.05315033]
[1740863302191,198.07427567,140.63,140.6,7.115]
[1740863302687,190.96067567,140.63,140.6,7.115]
[1740863303492,191.01381691,140.63,140.6,7.115]
[1740863303694,198.12751691,140.63,140.6,7.115]
[1740863303895,191.01381691,140.63,140.59,0.05315033]
[1740863304288,7.1148,140.61,140.59,0.05315033]
[1740863306194,7.1142,140.62,140.59,7.16835033]
[1740863306396,7.1142,140.62,140.59,0.05315033]
[1740863306586,191.01381691,140.63,140.59,0.05315033]
[1740863306890,7.1141,140.62,140.59,7.16855033]
[1740863307778,191.01381691,140.63,140.59,0.05315033]
[1740863308795,7.115,140.6,140.59,0.05315033]
[1740863314399,1.9682,140.62,140.54,7.1179]
[1740863314595,190.96067567,140.61,140.53,7.1184]
[1740863314899,10.22,140.6,140.5,1.9381]
[1740863315100,12.1169,140.6,140.5,1.9381]
[1740863315297,7.1183,140.54,140.5,1.9381]
[1740863315702,0.04507,140.56,140.51,0.04906848]
[1740863316197,0.04507,140.56,140.51,7.16826848]
[1740863316699,7.1185,140.54,140.51,7.16826848]
[1740863316896,0.04507,140.56,140.52,7.1187]
[1740863317195,7.1178,140.55,140.52,7.1187]
[1740863317501,0.04507,140.56,140.51,7.16836848]
[1740863317801,0.04507,140.56,140.51,0.04906848]
[1740863318000,0.04507,140.56,140.52,7.1188]
[1740863318299,0.04507,140.56,140.51,0.04906848]
[1740863319301,10.32507,140.56,140.51,0.04906848]
[1740863319598,7.1191,140.52,140.51,0.04906848]
[1740863321802,7.1212,140.48,140.44,39.34780929]
[1740863322400,231.7101,140.54,140.44,39.34780929]
[1740863323095,0.05316224,140.5,140.48,0.0453027]
[1740863323504,227.82,140.54,140.51,7.1195]
[1740863323700,7.1187,140.53,140.51,7.1195]
[1740863324102,227.82,140.54,140.47,3.7657]
[1740863324305,234.9383,140.54,140.52,7.119]
[1740863324802,234.99134128,140.54,140.52,0.05394124]
[1740863326406,227.87304128,140.54,140.52,7.17304124]
[1740863327507,227.87304128,140.54,140.52,0.05394124]
[1740863327704,7.1186,140.53,140.52,0.05394124]
[1740863328501,234.99144128,140.54,140.52,0.05394124]
[1740863329306,7.1186,140.53,140.52,0.05394124]
[1740863329908,234.99134128,140.54,140.52,0.05394124]
[1740863331912,7.1186,140.53,140.52,0.05394124]
[1740863332711,227.87304128,140.54,140.43,14.4007]
[1740863332712,229.87844128,140.54,140.43,10.4]
[1740863332901,1.8907,140.52,140.42,20.33695232]
[1740863333107,1.8907,140.52,140.42,49.84780929]
[1740863333108,7.1219,140.47,140.42,49.84780929]
[1740863333313,7.1219,140.47,140.42,39.34780929]
[1740863333715,0.05394397,140.46,140.44,7.1229]
[1740863336531,7.17604397,140.46,140.43,7.17202066]
[1740863338233,0.05394397,140.46,140.43,0.04862066]
[1740863339533,0.05394397,140.46,140.45,7.1226]
[1740863341237,192.85137567,140.52,140.48,7.1208]
[1740863341446,1.8907,140.52,140.48,7.1208]
[1740863341942,346.70818412,140.54,140.49,7.1203]
[1740863342442,7.1193,140.52,140.5,0.04823735]
[1740863343442,0.05088476,140.53,140.5,0.04823735]
[1740863343646,7.1196,140.51,140.5,0.04823735]
[1740863344839,7.1191,140.52,140.5,0.04823735]
[1740863346446,0.05088476,140.53,140.5,0.04823735]
[1740863347142,0.05088476,140.53,140.52,7.1191]
[1740863351656,0.05088476,140.53,140.51,7.1193]
[1740863351950,0.05088476,140.53,140.5,10.50823735]
[1740863353255,0.05088476,140.53,140.51,7.1193]
[1740863356256,0.05088476,140.53,140.52,7.1191]
[1740863360753,0.05088476,140.53,140.5,0.04823735]
[1740863360949,7.1193,140.52,140.5,0.04823735]
[1740863361757,7.16968476,140.53,140.5,0.04823735]
[1740863362448,7.1191,140.52,140.5,0.04823735]
[1740863363854,7.1196,140.51,140.5,0.04823735]
[1740863367362,1.9017,140.52,140.5,0.04823735]
[1740863367567,9.021,140.52,140.5,0.04823735]
[1740863368365,7.1196,140.51,140.5,0.04823735]
[1740863372958,0.05088476,140.53,140.5,0.04823735]
[1740863373362,0.05088476,140.53,140.51,7.1192]
[1740863373956,7.16948476,140.53,140.5,7.16813735]
[1740863375567,0.05088476,140.53,140.52,7.1191]
[1740863378069,8.476e-05,140.53,140.52,7.1191]
[1740863378264,3.8841,140.61,140.52,14.21182396]
[1740863378458,3.8841,140.61,140.53,5.87440973]
[1740863378669,3.8841,140.61,140.5,10.44]
[1740863378967,3.8841,140.61,140.57,7.1161]
[1740863379372,0.05175231,140.6,140.58,0.05173405]
[1740863382676,0.05175231,140.6,140.58,7.16773405]
[1740863386173,0.05175231,140.6,140.59,7.1155]
[1740863386972,1.9528,140.65,140.61,7.1143]
[1740863387281,7.1132,140.64,140.61,7.1143]
[1740863388075,7.15985783,140.64,140.61,7.16348756]
[1740863395177,0.04665783,140.64,140.61,0.04918756]
[1740863395378,0.04665783,140.64,140.63,7.1135]
[1740863397374,0.04665783,140.64,140.62,7.1138]
[1740863399594,7.15995783,140.64,140.61,7.16348756]
[1740863399987,0.04665783,140.64,140.61,7.16348756]
[1740863400188,7.114,140.62,140.61,0.04918756]
[1740863402390,1.9612,140.63,140.55,135.90542807]
[1740863402696,7.1159,140.59,140.56,7.117]
[1740863403296,0.04613808,140.59,140.56,0.05427814]
[1740863404497,7.16193808,140.59,140.56,7.17107814]
[1740863404689,0.04613808,140.59,140.56,0.05427814]
[1740863405798,7.1165,140.57,140.56,0.05427814]
[1740863406992,0.04613808,140.59,140.56,0.05427814]
[1740863407690,0.04613808,140.59,140.57,7.1165]
[1740863408194,0.04613808,140.59,140.58,7.116]
[1740863412799,0.04613808,140.59,140.57,10.32]
[1740863413489,0.04613808,140.59,140.58,7.116]
[1740863413798,0.04613808,140.59,140.57,10.32]
[1740863413983,0.04613808,140.59,140.56,0.05427814]
[1740863414895,7.1165,140.57,140.56,0.05427814]
[1740863415194,0.04613808,140.59,140.51,11.70735202]
[1740863415195,0.04613808,140.59,140.51,9.85345202]
[1740863415396,7.1183,140.54,140.51,16.97275202]
[1740863415598,2.0026,140.58,140.51,9.85345202]
[1740863415798,1.9874,140.57,140.51,9.85345202]
[1740863415994,7.1184,140.54,140.51,7.1195]
[1740863416393,7.1184,140.54,140.51,0.0452615]
[1740863416394,0.04840703,140.54,140.51,0.0452615]
[1740863416594,0.04840703,140.54,140.53,7.1186]
[1740863418700,0.04840703,140.54,140.52,7.1189]
[1740863418908,0.04840703,140.54,140.51,0.0452615]
[1740863419306,0.04840703,140.54,140.52,7.1191]
[1740863421406,0.04840703,140.54,140.53,7.1186]
[1740863428011,0.04840703,140.54,140.51,0.0452615]
[1740863428213,0.04840703,140.54,140.52,7.1189]
[1740863428810,0.04840703,140.54,140.51,7.1646615]
[1740863429309,7.16680703,140.54,140.51,7.1646615]
[1740863429620,0.04840703,140.54,140.51,0.0452615]
[1740863429815,7.119,140.53,140.51,0.0452615]
[1740863430005,0.04840703,140.54,140.51,0.0452615]
[1740863430506,7.1191,140.52,140.51,0.0452615]
[1740863438508,7.1201,140.5,140.47,17.4014]
[1740863438911,1.8769,140.56,140.45,10.26]
[1740863439117,192.83757567,140.56,140.43,127.54127429]
[1740863439336,192.83757567,140.56,140.43,135.93697429]
[1740863439619,7.1219,140.47,140.44,7.1227]
[1740863439825,0.04685573,140.51,140.44,7.1227]
[1740863440033,0.04945263,140.47,140.44,0.04811264]
[1740863440606,7.1224,140.46,140.44,0.04811264]
[1740863442223,0.04945263,140.47,140.45,7.1223]
[1740863442425,0.04945263,140.47,140.44,0.04811264]
[1740863442817,0.04945263,140.47,140.46,7.1221]
[1740863444222,0.04945263,140.47,140.46,17.4021]
[1740863447128,194.68287567,140.57,140.46,10.28]
[1740863447328,194.68287567,140.57,140.51,7.1192]
[1740863447329,1.863,140.56,140.51,7.1192]
[1740863447630,7.1181,140.54,140.51,7.1192]
[1740863448322,0.05298956,140.54,140.51,7.16909899]
[1740863449929,0.05298956,140.54,140.51,0.04989899]
[1740863450136,0.05298956,140.54,140.52,7.1191]
[1740863450316,0.05298956,140.54,140.51,0.04989899]
[1740863451531,0.05298956,140.54,140.53,7.1186]
[1740863453524,0.05298956,140.54,140.51,0.04989899]
[1740863454136,0.05298956,140.54,140.51,7.16919899]
[1740863454936,0.05298956,140.54,140.52,7.1188]
[1740863455336,0.05298956,140.54,140.51,0.04989899]
[1740863455727,0.05298956,140.54,140.53,7.1186]
[1740863459221,0.05298956,140.54,140.52,7.1189]
[1740863459533,0.05298956,140.54,140.51,0.04989899]
[1740863459732,0.05298956,140.54,140.52,7.1188]
[1740863460632,0.05298956,140.54,140.53,7.1186]
[1740863466542,0.05298956,140.54,140.51,0.04989899]
[1740863467530,7.17108956,140.54,140.51,0.04989899]
[1740863469842,7.1186,140.53,140.51,0.04989899]
[1740863470446,7.1191,140.52,140.51,0.04989899]
[1740863473541,9.069,140.53,140.51,0.04989899]
[1740863474348,1.9502,140.53,140.51,0.04989899]
[1740863474646,0.05298956,140.54,140.52,10.2]
[1740863475046,0.05298956,140.54,140.53,7.1186]
[1740863488369,8.956e-05,140.54,140.53,11.79117399]
[1740863488555,8.956e-05,140.54,140.53,13.66857399]
[1740863489467,8.956e-05,140.54,140.53,17.22857399]
[1740863489768,8.956e-05,140.54,140.53,17.58147399]
[1740863490170,8.956e-05,140.54,140.53,17.58002778]
[1740863491171,8.956e-05,140.54,140.53,13.66712778]
[1740863491468,8.956e-05,140.54,140.53,13.66712136]
[1740863492964,8.956e-05,140.54,140.53,17.22712136]
[1740863493364,8.956e-05,140.54,140.53,17.2259329]
[1740863505470,8.956e-05,140.54,140.53,13.6659329]
[1740863508179,8.956e-05,140.54,140.53,17.2137119]
[1740863510971,8.956e-05,140.54,140.53,17.21214431]
[1740863512381,8.956e-05,140.54,140.53,17.21222261]
[1740863515586,8.956e-05,140.54,140.53,23.55955239]
[1740863516586,8.956e-05,140.54,140.53,23.56578496]
[1740863519893,8.956e-05,140.54,140.53,33.41923698]
[1740863522092,8.956e-05,140.54,140.53,29.85923698]
[1740863522792,8.956e-05,140.54,140.53,20.00578496]
[1740863522987,8.956e-05,140.54,140.53,49.56614104]
[1740863525197,8.956e-05,140.54,140.53,283.43534773]
[1740863525999,10.8767,140.66,140.61,7.1143]
[1740863527199,0.05382364,140.65,140.62,0.05321716]
[1740863529299,7.16632364,140.65,140.62,0.05321716]
[1740863529501,7.16632364,140.65,140.62,7.16721716]
[1740863529686,7.16632364,140.65,140.62,0.05321716]
[1740863530694,0.05382364,140.65,140.62,7.16721716]
[1740863532104,0.05382364,140.65,140.62,0.05321716]
[1740863532306,0.05382364,140.65,140.63,7.1134]
[1740863532499,0.05382364,140.65,140.62,0.05321716]
[1740863533103,0.05382364,140.65,140.63,7.1132]
[1740863534689,0.05382364,140.65,140.62,0.05321716]
[1740863535504,0.05382364,140.65,140.62,7.16721716]
[1740863536495,7.16672364,140.65,140.62,7.16721716]
[1740863537200,0.05382364,140.65,140.64,7.113]
[1740863537392,2.364e-05,140.66,140.64,10.12]
[1740863537596,1.8534,140.67,140.64,10.12]
[1740863537804,1.8534,140.67,140.66,7.112]
[1740863539596,1.8534,140.67,140.65,7.16063133]
[1740863540299,1.8534,140.67,140.65,0.04833133]
[1740863540500,1.8534,140.67,140.64,1.015]
[1740863541003,8.9652,140.67,140.64,1.015]
[1740863541604,8.9652,140.67,140.64,1.067517]
[1740863542005,1.8534,140.67,140.64,1.067517]
[1740863542202,1.8534,140.67,140.64,8.180517]
[1740863542906,1.8534,140.67,140.64,1.067517]
[1740863543415,0.0391192,140.68,140.66,7.112]
[1740863546510,0.0391192,140.68,140.64,0.052517]
[1740863546511,3.5991192,140.68,140.64,0.052517]
[1740863546713,0.0391192,140.68,140.61,10.2]
[1740863546906,7.1129,140.65,140.61,10.2]
[1740863547215,3.8117,140.64,140.59,9.87287378]
[1740863547602,10.925,140.64,140.59,39.49149514]
[1740863547909,0.0488346,140.63,140.6,0.04728309]
[1740863548103,0.0488346,140.63,140.59,24.17537823]
[1740863548510,7.1146,140.61,140.59,24.17537823]
[1740863548696,0.0488346,140.63,140.59,24.17537823]
[1740863548895,3.6088346,140.63,140.59,24.17537823]
[1740863549096,7.115,140.6,140.59,24.17537823]
[1740863549496,10.675,140.6,140.59,24.17537823]
[1740863550207,10.675,140.6,140.58,79.03296577]
[1740863550208,7.1155,140.59,140.58,0.04997547]
[1740863550397,190.96067567,140.58,140.49,78.9829903]
[1740863550596,7.1174,140.56,140.49,78.9829903]
[1740863550801,10.36,140.62,140.49,78.9829903]
[1740863551014,1.15199763,140.61,140.49,86.1031903]
[1740863551310,7.1175,140.56,140.49,86.1031903]
[1740863551506,7.16531781,140.56,140.54,0.05244758]
[1740863551808,0.04781781,140.56,140.54,0.05283847]
[1740863552403,14.28781781,140.56,140.49,78.9829903]
[1740863552613,1.15203424,140.55,140.41,78.9829903]
[1740863553503,7.1217,140.47,140.41,78.9829903]
[1740863553697,11.08,140.48,140.47,0.04915394]
[1740863553905,11.08,140.48,140.41,78.9829903]
[1740863554805,7.1217,140.47,140.41,78.9829903]
[1740863555004,0.0463341,140.46,140.43,0.05349687]
[1740863555303,0.0463341,140.46,140.43,7.17709687]
[1740863555498,0.0463341,140.46,140.43,0.05349687]
[1740863556104,0.0463341,140.46,140.45,7.1226]
[1740863557208,0.0463341,140.46,140.43,7.17669687]
[1740863557409,0.0463341,140.46,140.43,0.05349687]
[1740863560406,7.1685341,140.46,140.43,0.05349687]
[1740863562012,0.0463341,140.46,140.43,0.05349687]
[1740863562629,0.0463341,140.46,140.44,7.123]
[1740863562809,0.0463341,140.46,140.43,0.05349687]
[1740863563817,0.0463341,140.46,140.45,7.1226]
[1740863564071,169.53211454,140.51,140.43,11.73349687]
[1740863564359,11.68,140.55,140.43,11.73349687]
[1740863564511,1.15250473,140.54,140.43,11.73349687]
[1740863564820,7.1192,140.52,140.46,7.1218]
[1740863565126,11.68,140.55,140.43,11.68]
[1740863565127,0.04963995,140.5,140.47,0.05230021]
[1740863565316,0.04963995,140.5,140.47,7.17380021]
[1740863566317,0.04963995,140.5,140.48,7.1211]
[1740863566523,0.04963995,140.5,140.47,0.05230021]
[1740863567011,0.04963995,140.5,140.49,7.1206]
[1740863568416,227.8,140.56,140.48,11.68]
[1740863568617,227.8,140.56,140.49,1.9227]
[1740863569019,7.1178,140.55,140.49,9.0431]
[1740863569211,227.8,140.56,140.4,1.8239]
[1740863569411,227.8,140.56,140.41,13.6485]
[1740863569615,0.04887346,140.49,140.48,7.1211]
[1740863569819,7.1184,140.54,140.46,11.68]
[1740863570015,227.8,140.56,140.47,0.04830269]
[1740863570219,7.1183,140.54,140.49,7.1206]
[1740863570522,0.046107,140.53,140.5,0.04641943]
[1740863572020,0.046107,140.53,140.5,7.16601943]
[1740863572419,0.046107,140.53,140.5,0.04641943]
[1740863572614,0.046107,140.53,140.52,7.1191]
[1740863573016,7.1162,140.58,140.5,0.04641943]
[1740863573227,239.54,140.63,140.51,11.64]
[1740863573524,227.9,140.63,140.51,11.64]
[1740863573728,7.1148,140.61,140.56,7.1168]
[1740863573914,7.1148,140.61,140.52,1.8528]
[1740863574315,0.04626354,140.58,140.55,0.05197349]
[1740863575820,0.04626354,140.58,140.55,7.16937349]
[1740863576627,0.04626354,140.58,140.56,1.9632]
[1740863577525,0.04626354,140.58,140.55,0.05197349]
[1740863577922,7.1165,140.57,140.55,0.05197349]
[1740863578429,7.16246354,140.58,140.55,0.05197349]
[1740863580420,0.04626354,140.58,140.55,0.05197349]
[1740863581131,7.1171,140.56,140.55,0.05197349]
[1740863582331,7.1196,140.51,140.5,3.9073]
[1740863582635,11.58,140.6,140.5,3.9073]
[1740863583228,11.58,140.6,140.51,7.1193]
[1740863583428,7.1179,140.55,140.54,0.04977027]
[1740863583736,0.0525603,140.56,140.54,0.04977027]
[1740863584236,0.0525603,140.56,140.54,7.16757027]
[1740863585031,0.0525603,140.56,140.54,0.04977027]
[1740863585230,344.71581799,140.63,140.55,7.1176]
[1740863585628,344.71581799,140.63,140.54,7.1178]
[1740863585828,7.116,140.59,140.54,7.1178]
[1740863586327,0.05192156,140.58,140.55,0.05348761]
[1740863586523,0.05192156,140.58,140.55,7.17058761]
[1740863589635,344.71581799,140.63,140.55,0.05348761]
[1740863589836,7.114,140.62,140.55,0.05348761]
[1740863590037,7.114,140.62,140.57,7.1162]
[1740863590222,344.71581799,140.63,140.56,1.8714]
[1740863590638,7.15956514,140.61,140.58,0.04677553]
[1740863591430,0.04496514,140.61,140.58,0.04677553]
[1740863592939,0.04496514,140.61,140.58,7.16277553]
[1740863594941,0.04496514,140.61,140.58,0.04677553]
[1740863595539,7.1154,140.6,140.58,0.04677553]
[1740863596241,7.1155,140.59,140.58,0.04677553]
[1740863596939,0.04496514,140.61,140.58,0.04677553]
[1740863597138,7.1152,140.6,140.58,0.04677553]
[1740863597337,0.04496514,140.61,140.58,0.04677553]
[1740863597740,7.1155,140.59,140.58,0.04677553]
[1740863603240,7.1176,140.55,140.52,18.5788]
[1740863603446,7.1176,140.55,140.52,11.46]
[1740863603852,7.1176,140.55,140.53,7.1183]
[1740863604253,0.1425,140.62,140.53,7.1183]
[1740863604454,0.05100519,140.59,140.56,0.04483059]
[1740863604751,7.116,140.58,140.56,0.04483059]
[1740863604956,0.05100519,140.59,140.56,0.04483059]
[1740863605445,7.1165,140.57,140.56,0.04483059]
[1740863608253,7.16690519,140.59,140.56,0.04483059]
[1740863608453,0.05100519,140.59,140.56,0.04483059]
[1740863608845,7.16680519,140.59,140.56,7.16163059]
[1740863609651,7.16680519,140.59,140.56,0.04483059]
[1740863609854,7.1162,140.58,140.56,0.04483059]
[1740863610354,7.1165,140.57,140.56,0.04483059]
[1740863610756,3.56,140.57,140.48,11.42]
[1740863610958,7.1189,140.53,140.48,11.42]
[1740863611348,7.1189,140.53,140.5,7.12]
[1740863611549,7.1176,140.55,140.48,11.42]
[1740863611847,0.05109298,140.52,140.51,7.1196]
[1740863612060,7.1167,140.57,140.49,1.9455]
[1740863612460,11.42,140.59,140.54,7.1178]
[1740863612662,423.38607153,140.63,140.49,1.9455]
[1740863612855,1.15185217,140.62,140.49,1.9455]
[1740863613257,0.04670281,140.57,140.55,7.1173]
[1740863613559,190.96067567,140.61,140.49,1.9455]
[1740863613748,0.04539219,140.57,140.55,0.05396739]
[1740863615059,7.1171,140.56,140.55,0.05396739]
[1740863619947,7.16229219,140.57,140.55,0.05396739]
[1740863620159,0.04539219,140.57,140.55,0.05396739]
[1740863620355,7.16199219,140.57,140.55,0.05396739]
[1740863621065,0.04539219,140.57,140.55,7.17146739]
[1740863623551,0.04539219,140.57,140.55,0.05396739]
[1740863623759,7.16209219,140.57,140.55,0.05396739]
[1740863627467,0.04539219,140.57,140.55,0.05396739]
[1740863628467,0.04539219,140.57,140.55,9.18456739]
[1740863629466,7.1158,140.59,140.55,9.18456739]
[1740863630466,7.1161,140.58,140.55,2.06726739]
[1740863630770,0.05361717,140.58,140.55,2.06726739]
[1740863631471,7.16991717,140.58,140.55,2.06726739]
[1740863637571,7.16991717,140.58,140.55,9.18476739]
[1740863638172,0.05361717,140.58,140.55,9.18476739]
[1740863638567,0.05361717,140.58,140.55,2.06726739]
[1740863638773,0.05361717,140.58,140.56,7.117]
[1740863639666,190.96067567,140.61,140.55,2.06726739]
[1740863639868,227.9,140.63,140.55,2.06726739]
[1740863640071,7.114,140.62,140.55,2.06726739]
[1740863640579,7.1143,140.62,140.58,7.1157]
[1740863640980,227.9,140.63,140.55,2.0133]
[1740863640981,0.05361243,140.61,140.59,0.05242454]
[1740863641383,7.1153,140.6,140.59,0.05242454]
[1740863642675,0.05361243,140.61,140.59,0.05242454]
[1740863644276,227.9,140.63,140.6,7.1147]
[1740863644481,227.9,140.63,140.6,9.1343]
[1740863644884,235.0135,140.63,140.6,9.1343]
[1740863645077,227.9,140.63,140.6,2.0196]
[1740863645477,227.93252043,140.63,140.6,2.0196]
[1740863646375,227.93252043,140.63,140.59,0.05242454]
[1740863646885,7.115,140.6,140.59,0.05242454]
[1740863652089,8.2668881,140.6,140.59,0.05242454]
[1740863652285,8.2668881,140.6,140.59,2.454e-05]
[1740863652487,11.8268881,140.6,140.59,2.454e-05]
[1740863653082,7.115,140.6,140.59,2.454e-05]
[1740863653290,8.26704882,140.6,140.59,2.454e-05]
[1740863654278,11.82704882,140.6,140.59,2.454e-05]
[1740863658993,8.26704882,140.6,140.59,2.454e-05]
[1740863659193,11.82704882,140.6,140.59,2.454e-05]
[1740863660993,10.675,140.6,140.59,2.454e-05]
[1740863661182,11.82716093,140.6,140.59,2.454e-05]
[1740863664498,11.82731268,140.6,140.59,2.454e-05]
[1740863665198,17.16803986,140.6,140.59,2.454e-05]
[1740863667700,17.16794242,140.6,140.59,2.454e-05]
[1740863668294,11.82721524,140.6,140.59,2.454e-05]
[1740863669690,8.26721524,140.6,140.59,2.454e-05]
[1740863671687,19.40721524,140.6,140.59,2.454e-05]
[1740863672297,8.26721524,140.6,140.59,2.454e-05]
[1740863672799,7.115,140.6,140.59,2.454e-05]
[1740863674799,8.26689474,140.6,140.59,2.454e-05]
[1740863675188,19.42689474,140.6,140.59,2.454e-05]
[1740863676599,18.275,140.6,140.59,2.454e-05]
[1740863676799,19.42688075,140.6,140.59,2.454e-05]
[1740863677002,19.42685451,140.6,140.59,2.454e-05]
[1740863677686,18.275,140.6,140.59,2.454e-05]
[1740863678299,19.42681993,140.6,140.59,2.454e-05]
[1740863679286,18.275,140.6,140.59,2.454e-05]
[1740863679498,19.42705799,140.6,140.59,2.454e-05]
[1740863681100,19.42702338,140.6,140.59,2.454e-05]
[1740863684410,19.42730702,140.6,140.59,2.454e-05]
[1740863685801,19.42725071,140.6,140.59,2.454e-05]
[1740863686308,137.94584611,140.6,140.59,2.454e-05]
[1740863686602,143.28712819,140.6,140.59,2.454e-05]
[1740863687713,142.13491104,140.6,140.59,2.454e-05]
[1740863688010,143.28711627,140.6,140.59,2.454e-05]
[1740863689001,104.04507696,140.6,140.59,2.454e-05]
[1740863690700,107.60507696,140.6,140.59,2.454e-05]
[1740863691013,102.89287173,140.6,140.59,2.454e-05]
[1740863691306,104.04522066,140.6,140.59,2.454e-05]
[1740863692407,7.1186,140.53,140.52,3.6716]
[1740863696017,7.1191,140.52,140.51,1.97948952]
[1740863697219,0.05275517,140.54,140.51,1.97948952]
[1740863697909,227.88,140.57,140.51,1.97948952]
[1740863698110,7.1179,140.55,140.51,9.09858952]
[1740863698310,4.0828,140.55,140.51,9.09858952]
[1740863698511,15.52262163,140.58,140.51,1.97948952]
[1740863698719,79.27658965,140.58,140.51,1.97948952]
[1740863699221,7.1179,140.55,140.52,7.1189]
[1740863700614,79.27658965,140.58,140.51,1.97948952]
[1740863701217,79.27658965,140.58,140.52,11.22]
[1740863701418,169.42551658,140.59,140.52,11.22]
[1740863701819,176.54151658,140.59,140.55,7.1173]
[1740863702410,169.42551658,140.59,140.55,7.1173]
[1740863702621,7.1161,140.58,140.56,1.9205]
[1740863702822,169.42551658,140.59,140.56,1.9205]
[1740863703522,169.42551658,140.59,140.57,1.9371]
[1740863703912,176.54141658,140.59,140.57,1.9371]
[1740863705222,7.116,140.58,140.57,1.9371]
[1740863707021,169.42551658,140.59,140.56,1.9205]
[1740863707220,7.1165,140.57,140.56,1.9205]
[1740863708620,176.54131658,140.59,140.56,9.0375]
[1740863709322,169.42551658,140.59,140.56,1.9205]
[1740863709523,7.1162,140.58,140.56,1.9205]
[1740863710730,176.54121658,140.59,140.56,9.0376]
[1740863711820,176.54121658,140.59,140.56,1.9205]